lending/lending_fUSD_20240824
["ID","MTS","AMOUNT","RATE_DAILY","PERIOD"]
[335839650,1724524278016,-151.0,0.00010999,2]
[335839651,1724524278025,-1387.11,0.00010999,2]
[335839652,1724524278035,-285.331118,0.00010999,2]
[335839653,1724524278045,-500.0,0.00010999,2]
[335839654,1724524278054,-1387.11,0.00010999,2]
[335839655,1724524278063,-151.0,0.00010999,2]
[335839656,1724524278072,-285.331118,0.00010999,2]
[335839657,1724524278082,-500.0,0.00010999,2]
[335839658,1724524278092,-1387.11,0.00010999,2]
[335839659,1724524278101,-151.0,0.00010999,2]
[335839660,1724524278111,-285.331118,0.00010999,2]
[335839661,1724524278121,-500.0,0.00010999,2]
[335839662,1724524278131,-1387.11,0.00010999,2]
[335839663,1724524278142,-1387.11,0.00010999,2]
[335839664,1724524278152,-500.0,0.00010999,2]
[335839665,1724524278162,-151.0,0.00010999,2]
[335839666,1724524278171,-285.331118,0.00010999,2]
[335839667,1724524278182,-1387.11,0.00010999,2]
[335839668,1724524278192,-500.0,0.00010999,2]
[335839669,1724524278202,-151.0,0.00010999,2]
[335839670,1724524278212,-1387.11,0.00010999,2]
[335839671,1724524278222,-500.0,0.00010999,2]
[335839672,1724524278232,-151.0,0.00010999,2]
[335839673,1724524278241,-500.0,0.00010999,2]
[335839674,1724524278252,-1387.11,0.00010999,2]
[335839675,1724524278262,-603.28,0.00010999,2]
[335839676,1724524278272,-1387.11,0.00010999,2]
[335839677,1724524278282,-1387.11,0.00010999,2]
[335839678,1724524278291,-1387.11,0.00010999,2]
[335839679,1724524278301,-1387.11,0.00010999,2]
[335839680,1724524278311,-1387.11,0.00010999,2]
[335839681,1724524278321,-1387.11,0.00010999,2]
[335839682,1724524278330,-1387.11,0.00010999,2]
[335839683,1724524278340,-1387.11,0.00010999,2]
[335839684,1724524278349,-1387.11,0.00010999,2]
[335839685,1724524278359,-1387.11,0.00010999,2]
[335839686,1724524278368,-1387.11,0.00010999,2]
[335839687,1724524278377,-1387.3,0.00010999,2]
[335839688,1724524278387,-724.71,0.00010999,2]
[335839689,1724524278396,-724.71,0.00010999,2]
[335839690,1724524278405,-724.71,0.00010999,2]
[335839691,1724524278415,-500.0,0.00010999,2]
[335839692,1724524278424,-724.71,0.00010999,2]
[335839693,1724524278436,-500.0,0.00010999,2]
[335839694,1724524278445,-724.71,0.00010999,2]
[335839695,1724524278454,-500.0,0.00010999,2]
[335839696,1724524278463,-724.71,0.00010999,2]
[335839697,1724524278472,-282.28,0.00010999,2]
[335839698,1724524278481,-724.71,0.00010999,2]
[335839699,1724524278491,-724.71,0.00010999,2]
[335839700,1724524278500,-724.71,0.00010999,2]
[335839701,1724524278509,-724.71,0.00010999,2]
[335839702,1724524278519,-724.71,0.00010999,2]
[335839703,1724524278528,-724.71,0.00010999,2]
[335839704,1724524278538,-724.71,0.00010999,2]
[335839705,1724524278547,-724.71,0.00010999,2]
[335839706,1724524278556,-724.71,0.00010999,2]
[335839707,1724524278565,-151.0,0.00010999,2]
[335839708,1724524278574,-151.0,0.00010999,2]
[335839709,1724524278583,-151.0,0.00010999,2]
[335839710,1724524278592,-151.0,0.00010999,2]
[335839711,1724524278602,-151.0,0.00010999,2]
[335839712,1724524278611,-724.71,0.00010999,2]
[335839713,1724524278620,-540.35,0.00010999,2]
[335839714,1724524278629,-151.0,0.00010999,2]
[335839715,1724524278639,-724.84,0.00010999,2]
[335839716,1724524278648,-151.0,0.00010999,2]
[335839717,1724524278657,-540.35,0.00010999,2]
[335839718,1724524278666,-151.0,0.00010999,2]
[335839719,1724524278676,-151.0,0.00010999,2]
[335839720,1724524278686,-540.35,0.00010999,2]
[335839721,1724524278696,-151.0,0.00010999,2]
[335839722,1724524278705,-500.0,0.00010999,2]
[335839723,1724524278714,-242.586404,0.00010999,2]
[335839724,1724524278724,-540.35,0.00010999,2]
[335839725,1724524278733,-500.0,0.00010999,2]
[335839726,1724524278743,-540.35,0.00010999,2]
[335839727,1724524278752,-151.0,0.00010999,2]
[335839728,1724524278761,-540.35,0.00010999,2]
[335839729,1724524278770,-500.0,0.00010999,2]
[335839730,1724524278780,-151.0,0.00010999,2]
[335839731,1724524278789,-540.35,0.00010999,2]
[335839732,1724524278798,-500.0,0.00010999,2]
[335839733,1724524278807,-151.0,0.00010999,2]
[335839734,1724524278817,-500.0,0.00010999,2]
[335839735,1724524278826,-151.0,0.00010999,2]
[335839736,1724524278835,-500.0,0.00010999,2]
[335839737,1724524278845,-540.35,0.00010999,2]
[335839738,1724524278855,-151.0,0.00010999,2]
[335839739,1724524278868,-1146.17,0.00010999,2]
[335839740,1724524278878,-151.0,0.00010999,2]
[335839741,1724524278887,-540.35,0.00010999,2]
[335839742,1724524278896,-151.0,0.00010999,2]
[335839743,1724524278906,-500.0,0.00010999,2]
[335839744,1724524278916,-1146.17,0.00010999,2]
[335839745,1724524278925,-540.35,0.00010999,2]
[335839746,1724524278936,-151.0,0.00010999,2]
[335839747,1724524278946,-500.0,0.00010999,2]
[335839748,1724524278955,-151.0,0.00010999,2]
[335839749,1724524278965,-1146.17,0.00010999,2]
[335839750,1724524278974,-151.0,0.00010999,2]
[335839751,1724524278983,-540.35,0.00010999,2]
[335839752,1724524278993,-500.0,0.00010999,2]
[335839753,1724524279002,-540.35,0.00010999,2]
[335839754,1724524279012,-1146.17,0.00010999,2]
[335839755,1724524279021,-189.300975,0.00010999,2]
[335839756,1724524279030,-500.0,0.00010999,2]
[335839757,1724524279040,-540.35,0.00010999,2]
[335839758,1724524279049,-500.0,0.00010999,2]
[335839759,1724524279058,-1146.17,0.00010999,2]
[335839760,1724524279068,-500.0,0.00010999,2]
[335839761,1724524279077,-540.35,0.00010999,2]
[335839762,1724524279087,-1146.17,0.00010999,2]
[335839763,1724524279097,-500.0,0.00010999,2]
[335839764,1724524279106,-1146.17,0.00010999,2]
[335839765,1724524279116,-500.0,0.00010999,2]
[335839766,1724524279125,-540.35,0.00010999,2]
[335839767,1724524279135,-1146.17,0.00010999,2]
[335839768,1724524279146,-897.01,0.00010999,2]
[335839769,1724524279155,-500.0,0.00010999,2]
[335839770,1724524279165,-540.35,0.00010999,2]
[335839771,1724524279175,-1146.17,0.00010999,2]
[335839772,1724524279185,-500.0,0.00010999,2]
[335839773,1724524279194,-897.01,0.00010999,2]
[335839774,1724524279204,-540.35,0.00010999,2]
[335839775,1724524279214,-1146.17,0.00010999,2]
[335839776,1724524279223,-897.01,0.00010999,2]
[335839777,1724524279232,-540.35,0.00010999,2]
[335839778,1724524279241,-1146.17,0.00010999,2]
[335839779,1724524279250,-540.57877885,0.00010999,2]
[335839780,1724524279260,-897.01,0.00010999,2]
[335839781,1724524279269,-1146.17,0.00010999,2]
[335839782,1724524279277,-897.01,0.00010999,2]
[335839783,1724524279287,-1146.17,0.00010999,2]
[335839784,1724524279296,-897.01,0.00010999,2]
[335839785,1724524279305,-1146.17,0.00010999,2]
[335839786,1724524279314,-1146.17,0.00010999,2]
[335839787,1724524279324,-897.01,0.00010999,2]
[335839788,1724524279333,-1146.17,0.00010999,2]
[335839789,1724524279342,-897.01,0.00010999,2]
[335839790,1724524279350,-1146.24,0.00010999,2]
[335839791,1724524279359,-897.01,0.00010999,2]
[335839792,1724524279369,-897.01,0.00010999,2]
[335839793,1724524279378,-897.01,0.00010999,2]
[335839794,1724524279388,-897.01,0.00010999,2]
[335839795,1724524279397,-897.01,0.00010999,2]
[335839796,1724524279406,-897.01,0.00010999,2]
[335839797,1724524279415,-897.01,0.00010999,2]
[335839798,1724524279424,-897.01,0.00010999,2]
[335839799,1724524279434,-897.17,0.00010999,2]
[335839800,1724524279443,-500.0,0.00010999,2]
[335839801,1724524279452,-500.0,0.00010999,2]
[335839802,1724524279462,-500.0,0.00010999,2]
[335839803,1724524279471,-500.0,0.00010999,2]
[335839804,1724524279480,-500.0,0.00010999,2]
[335839805,1724524279489,-500.0,0.00010999,2]
[335839806,1724524279498,-654.697138,0.00010999,2]
[335839807,1724524279507,-500.0,0.00010999,2]
[335839808,1724524279516,-500.0,0.00010999,2]
[335839809,1724524279527,-206.47127858,0.00010999,2]
[335839810,1724524279536,-654.697138,0.00010999,2]
[335839811,1724524279545,-500.0,0.00010999,2]
[335839812,1724524279553,-654.697138,0.00010999,2]
[335839813,1724524279563,-500.0,0.00010999,2]
[335839814,1724524279572,-654.697138,0.00010999,2]
[335839815,1724524279581,-500.0,0.00010999,2]
[335839816,1724524279591,-654.697138,0.00010999,2]
[335839817,1724524279600,-500.0,0.00010999,2]
[335839818,1724524279609,-654.697138,0.00010999,2]
[335839819,1724524279618,-500.0,0.00010999,2]
[335839820,1724524279627,-151.0,0.00010999,2]
[335839821,1724524279637,-500.0,0.00010999,2]
[335839822,1724524279646,-250.42276087,0.00010999,2]
[335839823,1724524279655,-654.697138,0.00010999,2]
[335839824,1724524279665,-500.0,0.00010999,2]
[335839825,1724524279674,-654.697138,0.00010999,2]
[335839826,1724524279684,-500.0,0.00010999,2]
[335839827,1724524279694,-500.0,0.00010999,2]
[335839828,1724524279703,-654.697138,0.00010999,2]
[335839829,1724524279712,-500.0,0.00010999,2]
[335839830,1724524279721,-654.697138,0.00010999,2]
[335839831,1724524279731,-500.0,0.00010999,2]
[335839832,1724524279740,-654.697138,0.00010999,2]
[335839833,1724524279749,-500.0,0.00010999,2]
[335839834,1724524279759,-654.697138,0.00010999,2]
[335839835,1724524279768,-500.0,0.00010999,2]
[335839836,1724524279776,-348.16799929,0.00010999,2]
[335839837,1724524279786,-500.0,0.00010999,2]
[335839838,1724524279795,-506.88308679,0.00010999,2]
[335839839,1724524279805,-500.0,0.00010999,2]
[335839840,1724524279814,-500.0,0.00010999,2]
[335839841,1724524279823,-500.0,0.00010999,2]
[335839842,1724524279832,-500.0,0.00010999,2]
[335839843,1724524279841,-471.3,0.00010999,2]
[335839844,1724524279851,-500.0,0.00010999,2]
[335839845,1724524279860,-500.0,0.00010999,2]
[335839846,1724524279873,-199.38233,0.00010999,2]
[335839847,1724524279882,-495.16808005,0.00010999,2]
[335839848,1724524279892,-1718.31,0.00010999,2]
[335839849,1724524279901,-1718.31,0.00010999,2]
[335839850,1724524279911,-1718.31,0.00010999,2]
[335839851,1724524279920,-1718.31,0.00010999,2]
[335839852,1724524279932,-1718.31,0.00010999,2]
[335839853,1724524279941,-1718.31,0.00010999,2]
[335839854,1724524280063,-1718.31,0.00010999,2]
[335839855,1724524280073,-1718.31,0.00010999,2]
[335839856,1724524280083,-1718.31,0.00010999,2]
[335839857,1724524280093,-1718.31,0.00010999,2]
[335839858,1724524280103,-1718.31,0.00010999,2]
[335839859,1724524280112,-1718.31,0.00010999,2]
[335839860,1724524280121,-1718.31,0.00010999,2]
[335839861,1724524280131,-1718.31,0.00010999,2]
[335839862,1724524280140,-1563.23967099,0.00010999,2]
[335839863,1724524280484,-155.07032901,0.00010999,2]
[335839864,1724524280494,-1718.31,0.00010999,2]
[335839865,1724524280504,-1718.31,0.00010999,2]
[335839866,1724524280513,-1718.31,0.00010999,2]
[335839867,1724524280523,-1718.31,0.00010999,2]
[335839868,1724524280533,-1718.34999999,0.00010999,2]
[335839869,1724524280544,-151.0,0.00010999,2]
[335839870,1724524280554,-151.0,0.00010999,2]
[335839871,1724524280563,-151.0,0.00010999,2]
[335839872,1724524280573,-151.0,0.00010999,2]
[335839873,1724524280583,-151.0,0.00010999,2]
[335839874,1724524280592,-244.87248,0.00010999,2]
[335839875,1724524280601,-500.0,0.00010999,2]
[335839876,1724524280611,-500.0,0.00010999,2]
[335839877,1724524280620,-500.0,0.00010999,2]
[335839878,1724524280629,-500.0,0.00010999,2]
[335839879,1724524280638,-500.0,0.00010999,2]
[335839880,1724524280647,-500.0,0.00010999,2]
[335839881,1724524280656,-600.81,0.00010999,2]
[335839882,1724524280665,-293.290218,0.00010999,2]
[335839883,1724524280674,-158.653,0.00010999,2]
[335839884,1724524280685,-150.0,0.00011,2]
[335839885,1724524280696,-552.0,0.00011,2]
[335839886,1724524280706,-1897.0,0.00011,2]
[335839887,1724524280715,-1154.0,0.00011,2]
[335839888,1724524280726,-248.0,0.00011,2]
[335839889,1724524280738,-12.70528003,0.00011,2]
[335839890,1724524280750,-601.59082322,0.00011,2]
[335839891,1724524280762,-2705.70389675,0.00011,2]
[335839892,1724524280772,-764.0,0.00011,2]
[335839893,1724524280781,-1077.0,0.00011,2]
[335839894,1724524280791,-623.0,0.00011,2]
[335839895,1724524280800,-1041.73147753,0.00011,2]
[335839896,1724524280811,-271.7693211,0.00011,2]
[335839897,1724524280823,-230.49920137,0.00011,2]
[335839898,1724524280833,-3319.84561953,0.00011,2]
[335839899,1724524280844,-409.15438047,0.00011,2]
[335839900,1724524280853,-48.43831356,0.00011,2]
[335839901,1724524280866,-240.56168644,0.00011,2]
[335839902,1724524280877,-4946.82241357,0.00011,2]
[335839903,1724524280917,-262.2465502,0.00011,2]
[335839904,1724524281005,-3034.40194767,0.00011,2]
[335839905,1724524281022,-347.55,0.00010998,2]
[335839906,1724524281034,-248.64,0.00010998,2]
[335839907,1724524281044,-738.98616597,0.00011,2]
[335839908,1724524281273,-2342.85460569,0.00010449,2]
[335839909,1724524281282,-1206.0,0.00010884,2]
[335839910,1724524281291,-500.0,0.00010958,2]
[335839911,1724524281300,-500.0,0.00010997,2]
[335839912,1724524281309,-500.0,0.00010998,2]
[335839913,1724524281318,-596.19,0.00010998,2]
[335839914,1724524281327,-500.0,0.00010998,2]
[335839915,1724524281336,-500.0,0.00010998,2]
[335839916,1724524281345,-500.0,0.00010998,2]
[335839917,1724524281354,-500.0,0.00010999,2]
[335839918,1724524281363,-596.19,0.00010999,2]
[335839919,1724524281372,-500.0,0.00010999,2]
[335839920,1724524281382,-596.19,0.00010999,2]
[335839921,1724524281391,-287.09175063,0.00010999,2]
[335839922,1724524281401,-309.09824937,0.00010999,2]
[335839923,1724524281411,-596.19,0.00010999,2]
[335839924,1724524281420,-596.19,0.00010999,2]
[335839925,1724524281430,-500.0,0.00010999,2]
[335839926,1724524281439,-596.19,0.00010999,2]
[335839927,1724524281448,-500.0,0.00010999,2]
[335839928,1724524281457,-500.0,0.00010999,2]
[335839929,1724524281466,-596.19,0.00010999,2]
[335839930,1724524281475,-1986.79959063,0.00011,2]
[335839931,1724524281495,-500.0,0.00010999,2]
[335839932,1724524281504,-5399.8762,0.00011,2]
[335839933,1724524281516,-5925.69599542,0.00011,2]
[335839934,1724524281526,-1508.51407282,0.00011,2]
[335839935,1724524281537,-1061.28,0.00011,2]
[335839936,1724524281548,-1031.74189146,0.00011,2]
[335839937,1724524281564,-596.19,0.00010999,2]
[335839938,1724524281573,-726.11,0.00011,2]
[335839939,1724524281587,-258.105,0.00011,2]
[335839940,1724524281599,-333.59523142,0.00011,2]
[335839941,1724524281610,-745.08646596,0.00011,2]
[335839942,1724524281622,-6016.2,0.00011,2]
[335839943,1724524281633,-3476.63696484,0.00011,2]
[335839944,1724524281644,-865.26308682,0.00011,2]
[335839945,1724524281654,-393.47825,0.00011,2]
[335839946,1724524281923,-591.5645175,0.00010449,2]
[335839947,1724524281935,-557.50455373,0.00010449,2]
[335839948,1724524281945,-150.0,0.00010944,2]
[335839949,1724524281956,-500.0,0.00010999,2]
[335839950,1724524281966,-596.19,0.00010999,2]
[335839951,1724524281975,-500.0,0.00010999,2]
[335839952,1724524281984,-596.19,0.00010999,2]
[335839953,1724524281994,-500.0,0.00010999,2]
[335839954,1724524282003,-500.0,0.00010999,2]
[335839955,1724524282013,-596.19,0.00010999,2]
[335839956,1724524282022,-500.0,0.00010999,2]
[335839957,1724524282031,-596.19,0.00010999,2]
[335839958,1724524282040,-158.98,0.00010999,2]
[335839959,1724524282049,-302.30470379,0.00010999,2]
[335839960,1724524282068,-293.88529621,0.00010999,2]
[335839961,1724524282077,-596.19,0.00010999,2]
[335839962,1724524282087,-596.19,0.00010999,2]
[335839963,1724524282097,-596.19,0.00010999,2]
[335839964,1724524282107,-129950.90352917,0.00011,2]
[335839965,1724524282119,-3224.0758753,0.00011,2]
[335839966,1724524282141,-373.13718276,0.00011,2]
[335839967,1724524282153,-47156.25571461,0.00011,2]
[335839968,1724524282165,-4068.391154,0.00011,2]
[335839969,1724524282176,-17853.34084675,0.00011,2]
[335839970,1724524282292,-47891.75421239,0.00011,2]
[335839971,1724524282308,-1449.96550931,0.00011,2]
[335839972,1724524282319,-4915.28500484,0.00011,2]
[335839973,1724524282330,-4883.9047737,0.00011,2]
[335839974,1724524282447,-1412.93673964,0.00011,2]
[335839975,1724524282458,-1140.33466279,0.00011,2]
[335839976,1724524282476,-254.48296465,0.00010999,2]
[335839977,1724524282487,-341.80703535,0.00010999,2]
[335839978,1724524282497,-713.6378221,0.00011,2]
[335839980,1724524351327,150.0,0.0002593,120]
[335840014,1724524650881,150.0,0.00026719,120]
[335840015,1724524676364,303.25,8.219e-05,2]
[335840016,1724524715665,200.0,9.97e-05,2]
[335840018,1724524741735,229.53,9.966e-05,2]
[335840019,1724524771828,150.0,0.00024435,120]
[335840029,1724524813254,3179.94884522,9.951e-05,2]
[335840030,1724524813275,2391.85115478,9.951e-05,2]
[335840033,1724524891884,150.0,0.00025308,120]
[335840034,1724524904720,5715.81144511,9.941e-05,2]
[335840037,1724524950704,150.0,0.0002519,120]
[335840038,1724524972598,1050.0,0.0001,2]
[335840039,1724524973784,549.0,9.927e-05,2]
[335840040,1724524980605,200.0,9.927e-05,2]
[335840041,1724524988721,48061.91786461,0.00027,120]
[335840045,1724525014899,577.49,9.93e-05,2]
[335840048,1724525037433,1580.5,9.914e-05,2]
[335840051,1724525101558,1829.19855489,0.00010009,2]
[335840052,1724525101580,4088.27063076,0.00010009,2]
[335840053,1724525112419,150.0,9.888e-05,2]
[335840054,1724525124001,181.89001011,0.00010009,2]
[335840055,1724525134933,500.0,0.00010009,2]
[335840056,1724525141064,523.93623685,0.00010009,2]
[335840057,1724525161613,314.24,8.219e-05,2]
[335840058,1724525178816,270.62814649,9.962e-05,2]
[335840059,1724525182446,500.0,0.0001,2]
[335840060,1724525199692,485.77175334,0.0001,2]
[335840061,1724525205735,593.41206767,9.915e-05,2]
[335840062,1724525205758,246.58793233,9.915e-05,2]
[335840065,1724525217080,192.47075282,9.962e-05,2]
[335840066,1724525217462,500.0,0.0001,2]
[335840072,1724525266295,229.56,9.92e-05,2]
[335840073,1724525297372,500.0,8.22e-05,2]
[335840074,1724525299062,1138.87080337,0.00010009,2]
[335840075,1724525299444,700.0,8.22e-05,2]
[335840076,1724525301241,700.0,9.59e-05,2]
[335840077,1724525308438,-167.0,0.00010025,2]
[335840078,1724525308460,-5022.25190481,0.00010026,2]
[335840079,1724525308481,-489.48,0.00010041,2]
[335840080,1724525308502,-318.553,0.00010066,2]
[335840081,1724525308523,-283.60859595,0.00010097,2]
[335840082,1724525308545,-203.87566736,0.00010097,2]
[335840083,1724525308566,-314.24701514,0.00010097,2]
[335840084,1724525308586,-155.49286608,0.00010097,2]
[335840085,1724525308607,-157.71824926,0.00010471,2]
[335840086,1724525308628,-3045.7727014,0.00010471,2]
[335840097,1724525336438,500.0,8.22e-05,2]
[335840098,1724525336750,800.0,8.22e-05,2]
[335840099,1724525338763,800.0,9.59e-05,2]
[335840100,1724525342630,3692.51051148,9.951e-05,2]
[335840101,1724525342651,1206.09948852,9.951e-05,2]
[335840112,1724525422054,600.74422133,0.00010009,2]
[335840138,1724525431640,-155.0,0.00010026,2]
[335840139,1724525431649,-179.8323061,0.00010026,2]
[335840140,1724525431658,-160.0,0.00010026,2]
[335840141,1724525431668,-155.0,0.00010097,2]
[335840142,1724525431678,-1298.23330788,0.00010097,2]
[335840143,1724525431689,-10545.42285411,0.00010097,2]
[335840144,1724525431699,-300.0,0.0001047,2]
[335840145,1724525431710,-500.0,0.00010471,2]
[335840146,1724525431720,-201.75781923,0.00010471,2]
[335840147,1724525431729,-304.288953,0.00010471,2]
[335840148,1724525431738,-304.288953,0.00010471,2]
[335840149,1724525431748,-314.24,0.00010472,2]
[335840150,1724525431758,-178.44,0.0001049,2]
[335840151,1724525431768,-150.0,0.00010565,2]
[335840152,1724525431777,-155.0,0.00010566,2]
[335840153,1724525431786,-2506.72210247,0.00010713,2]
[335840154,1724525431796,-2388.5951406,0.00010799,2]
[335840155,1724525431806,-33449.01414659,0.000108,2]
[335840156,1724525431818,-1323.01385731,0.000108,2]
[335840157,1724525431946,-572.13348406,0.000108,2]
[335840158,1724525431963,-9414.19131797,0.000108,2]
[335840159,1724525431975,-650.14882909,0.000108,2]
[335840160,1724525431986,-413.48336373,0.000108,2]
[335840161,1724525432446,187.38,9.927e-05,2]
[335840176,1724525437702,-2673.28413778,0.000108,2]
[335840177,1724525437714,-476.81295156,0.000108,2]
[335840178,1724525437749,-3022.99999999,0.000108,2]
[335840179,1724525437760,-11846.55046707,0.000108,2]
[335840180,1724525437771,-402.78278022,0.000108,2]
[335840181,1724525437782,-437.70943335,0.000108,2]
[335840182,1724525437820,-1836.5905978,0.000108,2]
[335840183,1724525437868,-23289.518578,0.000108,2]
[335840194,1724525439807,-36989.54551955,0.000108,2]
[335840195,1724525439862,-508.47077684,0.000108,2]
[335840196,1724525439874,-9684.69308687,0.000108,2]
[335840240,1724525440500,-67980.43800868,0.000108,2]
[335840243,1724525440512,-284.93499999,0.000108,2]
[335840455,1724525442757,-3062.34346596,0.000108,2]
[335840457,1724525442768,-24149.19161144,0.000108,2]
[335840481,1724525442994,-2183.82,0.000108,2]
[335840532,1724525445812,-656.9760301,0.000108,2]
[335840533,1724525445861,-42946.12564211,0.000108,2]
[335840538,1724525477987,491.06,9.965e-05,2]
[335840539,1724525503188,500.0,8.22e-05,2]
[335840540,1724525522189,700.0,8.22e-05,2]
[335840541,1724525523683,700.0,9.59e-05,2]
[335840542,1724525535905,500.0,8.22e-05,2]
[335840544,1724525550061,600.0,8.22e-05,2]
[335840545,1724525551615,600.0,9.59e-05,2]
[335840554,1724525620046,1406.83,9.93e-05,2]
[335840555,1724525620637,656.42072154,0.0001,2]
[335840557,1724525685027,500.0,0.0001,2]
[335840558,1724525685362,323.93,8.219e-05,2]
[335840559,1724525698130,328.0,9.925e-05,2]
[335840560,1724525843920,216.37,9.901e-05,2]
[335840562,1724525899546,155.0,0.00010009,2]
[335840568,1724525941096,500.0,0.00010009,2]
[335840569,1724525971340,245.53,9.863e-05,2]
[335840570,1724525975362,2797.81629015,9.863e-05,2]
[335840571,1724525975385,10000.0,9.863e-05,2]
[335840572,1724525975408,10000.0,9.863e-05,2]
[335840573,1724525975432,1102.18370985,9.863e-05,2]
[335840579,1724526037568,211.25763807,0.00010009,2]
[335840587,1724526060233,255.48598865,0.00010009,2]
[335840588,1724526112853,250.0,9.832e-05,2]
[335840596,1724526132074,155.67856311,0.00010009,2]
[335840598,1724526192477,335.07,8.219e-05,2]
[335840599,1724526192872,264.16012123,0.00010009,2]
[335840600,1724526221258,737.6,9.853e-05,2]
[335840602,1724526235104,200.0,9.853e-05,2]
[335840603,1724526243681,216.87279016,0.00010009,2]
[335840604,1724526366798,893.76010545,0.00010009,2]
[335840605,1724526369279,1689.37377998,0.00010009,2]
[335840606,1724526393922,536.65833866,0.00010009,2]
[335840608,1724526402107,156.39812584,0.00010009,2]
[335840609,1724526439470,1064.41937794,0.00010009,2]
[335840611,1724526448787,1931.08146106,9.83e-05,2]
[335840612,1724526448810,10000.0,9.83e-05,2]
[335840613,1724526448833,10000.0,9.83e-05,2]
[335840614,1724526448855,376.77853894,9.83e-05,2]
[335840615,1724526459579,155.09955456,0.00010009,2]
[335840616,1724526477181,275.1054945,0.00010009,2]
[335840617,1724526483813,450.67856455,0.00010009,2]
[335840618,1724526486230,860.23729054,0.00010009,2]
[335840619,1724526494773,366.22832122,0.00010009,2]
[335840620,1724526496553,419.50258882,0.00010009,2]
[335840621,1724526509366,226.9,9.854e-05,2]
[335840629,1724526517733,155.0,0.00010009,2]
[335840635,1724526538582,155.0,0.00010009,2]
[335840636,1724526554814,155.09853817,0.00010009,2]
[335840637,1724526558266,486.12274777,0.00010009,2]
[335840638,1724526562892,432.64200537,0.00010009,2]
[335840652,1724526623087,-155.0,0.00010026,2]
[335840653,1724526623108,-156.26871753,0.00010026,2]
[335840654,1724526623128,-348.08542465,0.00010097,2]
[335840655,1724526623149,-2643.0,0.00010246,2]
[335840656,1724526623171,-335.07,0.00010469,2]
[335840657,1724526623193,-300.0,0.00010504,2]
[335840658,1724526623213,-6062.57585782,0.00010505,2]
[335840678,1724526631950,-530.14499983,0.00010369,2]
[335840679,1724526631974,-155.05469776,0.00010369,2]
[335840680,1724526631983,-224.98416928,0.00010505,2]
[335840681,1724526631994,-124.44848712,0.00010505,2]
[335840682,1724526632003,-428.55151288,0.00010505,2]
[335840683,1724526632015,-318.56426752,0.00010505,2]
[335840684,1724526632024,-166.44772973,0.00010566,2]
[335840685,1724526632033,-725.08153089,0.00010566,2]
[335840686,1724526632043,-4166.5991043,0.0001069,2]
[335840687,1724526632101,-1316.83678172,0.0001069,2]
[335840688,1724526632112,-2621.69081877,0.0001069,2]
[335840689,1724526632150,-2730.13207896,0.0001069,2]
[335840690,1724526632160,-150.0,0.00010699,2]
[335840691,1724526632169,-155.0,0.00010699,2]
[335840692,1724526632178,-164.56354691,0.00010699,2]
[335840693,1724526632187,-5258.48770087,0.000107,2]
[335840696,1724526637915,-540.65357155,0.000107,2]
[335840697,1724526637926,-14962.96234,0.000107,2]
[335840698,1724526637938,-1266.25068988,0.000107,2]
[335840699,1724526637950,-464.27999997,0.000107,2]